[Event "Early-Titled-Tuesday-Blitz-March-05-2024"]
[Site "Chess.com"]
[Date "2024.03.05"]
[Round "10"]
[White "Aleksandar-Topalov"]
[Black "wild3000"]
[Result "1-0"]
[WhiteElo "2364"]
[BlackElo "2481"]
[TimeControl "180+1"]
[EndTime "9:56:37 PST"]
[Termination "Aleksandar-Topalov won by checkmate"]

1. b3 {[%clk 0:03:00.9]} 1... a5 {[%clk 0:02:59.8]} 2. a3 {[%clk 0:02:59.7]}
2... e6 {[%clk 0:03:00.2]} 3. Bb2 {[%clk 0:02:58.8]} 3... Nf6 {[%clk 0:03:01.1]}
4. Nf3 {[%clk 0:02:58.4]} 4... d5 {[%clk 0:03:02]} 5. e3 {[%clk 0:02:57.3]} 5...
Be7 {[%clk 0:03:02.5]} 6. d4 {[%clk 0:02:57.4]} 6... O-O {[%clk 0:03:03.2]} 7.
Nbd2 {[%clk 0:02:57.7]} 7... c6 {[%clk 0:03:02.6]} 8. Bd3 {[%clk 0:02:57.4]}
8... b5 {[%clk 0:03:03]} 9. Ne5 {[%clk 0:02:56.5]} 9... Bb7 {[%clk 0:03:02.3]}
10. O-O {[%clk 0:02:55.6]} 10... Nbd7 {[%clk 0:03:02.3]} 11. f4 {[%clk
0:02:55.2]} 11... b4 {[%clk 0:02:58.5]} 12. Rf3 {[%clk 0:02:53]} 12... c5 {[%clk
0:02:56.8]} 13. Nxd7 {[%clk 0:02:52.1]} 13... Qxd7 {[%clk 0:02:56.5]} 14. Rh3
{[%clk 0:02:43.6]} 14... Qc6 {[%clk 0:02:47.5]} 15. Bxh7+ {[%clk 0:02:42]} 15...
Nxh7 {[%clk 0:02:41.7]} 16. Qh5 {[%clk 0:02:41.6]} 16... f6 {[%clk 0:02:29.3]}
17. Qxh7+ {[%clk 0:02:34.3]} 17... Kf7 {[%clk 0:02:29.4]} 18. Qh5+ {[%clk
0:02:34.4]} 18... Kg8 {[%clk 0:02:29.4]} 19. dxc5 {[%clk 0:01:54.1]} 19... Bxc5
{[%clk 0:02:27.7]} 20. Qh7+ {[%clk 0:01:45.2]} 20... Kf7 {[%clk 0:02:27.4]} 21.
Rg3 {[%clk 0:01:43.6]} 21... Rg8 {[%clk 0:02:17.7]} 22. axb4 {[%clk 0:01:23.5]}
22... axb4 {[%clk 0:02:17.1]} 23. Rxa8 {[%clk 0:01:22.6]} 23... Bxa8 {[%clk
0:02:14.9]} 24. Nf1 {[%clk 0:01:01.8]} 24... d4 {[%clk 0:01:59.8]} 25. exd4
{[%clk 0:00:58.8]} 25... Bb6 {[%clk 0:01:59.2]} 26. Kh1 {[%clk 0:00:43.7]} 26...
Qe4 {[%clk 0:01:59]} 27. Qh5+ {[%clk 0:00:36.9]} 27... Ke7 {[%clk 0:01:45.6]}
28. d5 {[%clk 0:00:34.9]} 28... Bxd5 {[%clk 0:01:38.9]} 29. h3 {[%clk
0:00:18.5]} 29... Qxf4 {[%clk 0:01:37.8]} 30. Qe2 {[%clk 0:00:11.3]} 30... Rc8
{[%clk 0:01:29.4]} 31. Qb5 {[%clk 0:00:09.6]} 31... Rxc2 {[%clk 0:01:20.2]} 32.
Rxg7+ {[%clk 0:00:08.9]} 32... Kd6 {[%clk 0:01:17]} 33. Rd7# {[%clk 0:00:05.1]}
1-0

[Event "Early-Titled-Tuesday-Blitz-March-05-2024"]
[Site "Chess.com"]
[Date "2024.03.05"]
[Round "10"]
[White "Szparu"]
[Black "Arystanner"]
[Result "1-0"]
[WhiteElo "2796"]
[BlackElo "2883"]
[TimeControl "180+1"]
[EndTime "9:56:38 PST"]
[Termination "Szparu won by resignation"]

1. d4 {[%clk 0:03:00.9]} 1... d5 {[%clk 0:03:00.4]} 2. c4 {[%clk 0:03:01.2]}
2... e6 {[%clk 0:03:01.1]} 3. Nf3 {[%clk 0:03:01.4]} 3... Nf6 {[%clk 0:03:01.2]}
4. Nc3 {[%clk 0:03:01.8]} 4... Be7 {[%clk 0:03:01.5]} 5. g3 {[%clk 0:03:02.2]}
5... O-O {[%clk 0:03:01.1]} 6. Bg2 {[%clk 0:03:02.7]} 6... c6 {[%clk 0:03:00.3]}
7. Qd3 {[%clk 0:03:02]} 7... a5 {[%clk 0:02:57]} 8. e4 {[%clk 0:03:01.9]} 8...
b6 {[%clk 0:02:57.4]} 9. b3 {[%clk 0:02:56.5]} 9... Ba6 {[%clk 0:02:57.3]} 10.
O-O {[%clk 0:02:54.1]} 10... b5 {[%clk 0:02:57.8]} 11. Ne5 {[%clk 0:02:36.2]}
11... bxc4 {[%clk 0:02:54.3]} 12. bxc4 {[%clk 0:02:36.3]} 12... Nfd7 {[%clk
0:02:52.4]} 13. exd5 {[%clk 0:02:29]} 13... cxd5 {[%clk 0:02:50.1]} 14. Rd1
{[%clk 0:02:26.7]} 14... Nxe5 {[%clk 0:02:49.7]} 15. dxe5 {[%clk 0:02:26.8]}
15... Bxc4 {[%clk 0:02:50.2]} 16. Qxc4 {[%clk 0:02:26.9]} 16... dxc4 {[%clk
0:02:23.4]} 17. Rxd8 {[%clk 0:02:26.5]} 17... Rxd8 {[%clk 0:02:24.3]} 18. Bxa8
{[%clk 0:02:26.9]} 18... Bb4 {[%clk 0:02:25.2]} 19. Bb2 {[%clk 0:02:03.2]} 19...
Rd2 {[%clk 0:02:13.1]} 20. Na4 {[%clk 0:02:03.5]} 20... Nd7 {[%clk 0:02:05.4]}
21. Rc1 {[%clk 0:02:02.3]} 21... c3 {[%clk 0:01:53.5]} 22. Bxc3 {[%clk
0:01:43.9]} 22... Bxc3 {[%clk 0:01:34.5]} 23. Nxc3 {[%clk 0:01:41]} 23... Nxe5
{[%clk 0:01:32]} 24. Be4 {[%clk 0:01:29.4]} 24... f5 {[%clk 0:01:28.1]} 25. Rc2
{[%clk 0:01:29.4]} 25... Nf3+ {[%clk 0:01:17.9]} 26. Kf1 {[%clk 0:01:21.5]}
26... fxe4 {[%clk 0:01:17.8]} 27. Rxd2 {[%clk 0:01:21]} 27... Nxd2+ {[%clk
0:01:18.7]} 28. Ke2 {[%clk 0:01:21.7]} 28... Nc4 {[%clk 0:00:54.9]} 29. Nxe4
{[%clk 0:01:21.4]} 29... h6 {[%clk 0:00:53.3]} 30. Kd3 {[%clk 0:01:21.4]} 30...
Ne5+ {[%clk 0:00:51.8]} 31. Kd4 {[%clk 0:01:20.5]} 31... Nf3+ {[%clk 0:00:51.5]}
32. Kc5 {[%clk 0:01:20.7]} 32... Kf8 {[%clk 0:00:47.4]} 33. Kb5 {[%clk 0:01:21]}
33... Nxh2 {[%clk 0:00:46.9]} 34. Kxa5 {[%clk 0:01:21.2]} 34... Ke7 {[%clk
0:00:47.8]} 35. Kb6 {[%clk 0:01:21.5]} 35... Kd7 {[%clk 0:00:39.5]} 36. a4
{[%clk 0:01:22.4]} 36... Kc8 {[%clk 0:00:39.8]} 37. a5 {[%clk 0:01:22.8]} 37...
Nf3 {[%clk 0:00:37.5]} 38. a6 {[%clk 0:01:23]} 38... Kb8 {[%clk 0:00:36.9]} 39.
Nc5 {[%clk 0:01:16.2]} 39... Ne5 {[%clk 0:00:31.4]} 40. a7+ {[%clk 0:01:13.9]}
40... Ka8 {[%clk 0:00:31.8]} 41. Nxe6 {[%clk 0:01:13.6]} 41... Nd7+ {[%clk
0:00:29.6]} 42. Ka6 {[%clk 0:01:13.8]} 1-0

[Event "Early-Titled-Tuesday-Blitz-March-05-2024"]
[Site "Chess.com"]
[Date "2024.03.05"]
[Round "10"]
[White "2KTNGO"]
[Black "GeorgiosSouleidis"]
[Result "1-0"]
[WhiteElo "2530"]
[BlackElo "2655"]
[TimeControl "180+1"]
[EndTime "9:56:41 PST"]
[Termination "2KTNGO won by resignation"]

1. e4 {[%clk 0:03:00.9]} 1... c5 {[%clk 0:02:59.6]} 2. Nf3 {[%clk 0:03:00]} 2...
e6 {[%clk 0:02:59.7]} 3. c4 {[%clk 0:02:58.6]} 3... Nc6 {[%clk 0:02:58.8]} 4.
Nc3 {[%clk 0:02:55.4]} 4... Nf6 {[%clk 0:02:57.6]} 5. Be2 {[%clk 0:02:55.3]}
5... d5 {[%clk 0:02:57.7]} 6. exd5 {[%clk 0:02:43.8]} 6... exd5 {[%clk
0:02:58.6]} 7. d4 {[%clk 0:02:44]} 7... cxd4 {[%clk 0:02:51.8]} 8. Nxd4 {[%clk
0:02:41.9]} 8... Bc5 {[%clk 0:02:43.5]} 9. Nb3 {[%clk 0:02:39.5]} 9... Bb4
{[%clk 0:02:43.6]} 10. O-O {[%clk 0:02:38.3]} 10... d4 {[%clk 0:02:40.2]} 11.
Nb5 {[%clk 0:02:38]} 11... Kf8 {[%clk 0:02:23.6]} 12. Bf4 {[%clk 0:02:31.4]}
12... h5 {[%clk 0:01:50.6]} 13. h3 {[%clk 0:02:29.6]} 13... Bf5 {[%clk
0:01:46.5]} 14. N3xd4 {[%clk 0:02:27.5]} 14... Nxd4 {[%clk 0:01:46.6]} 15. Nxd4
{[%clk 0:02:27.1]} 15... Bg6 {[%clk 0:01:43.3]} 16. Qb3 {[%clk 0:02:19.7]} 16...
Qxd4 {[%clk 0:01:38.2]} 17. Qxb4+ {[%clk 0:02:19.1]} 17... Kg8 {[%clk
0:01:38.8]} 18. Be3 {[%clk 0:02:18.6]} 18... Qd7 {[%clk 0:01:32.9]} 19. Rfd1
{[%clk 0:02:16.3]} 19... Qc7 {[%clk 0:01:33.1]} 20. Bf3 {[%clk 0:02:11.8]} 20...
Be4 {[%clk 0:01:25.9]} 21. Bxe4 {[%clk 0:02:10.2]} 21... Nxe4 {[%clk 0:01:26.8]}
22. Rd4 {[%clk 0:02:10]} 22... Re8 {[%clk 0:01:15]} 23. Qb5 {[%clk 0:02:01.4]}
23... Re5 {[%clk 0:01:01.2]} 24. Qd7 {[%clk 0:01:55.9]} 24... Qc6 {[%clk
0:00:48.8]} 25. Qxc6 {[%clk 0:01:45.7]} 25... bxc6 {[%clk 0:00:49.7]} 26. Rd8+
{[%clk 0:01:45.3]} 26... Kh7 {[%clk 0:00:49.6]} 27. Rxh8+ {[%clk 0:01:45.8]}
27... Kxh8 {[%clk 0:00:50.5]} 28. Bxa7 {[%clk 0:01:43.1]} 28... Nd2 {[%clk
0:00:49.4]} 29. b3 {[%clk 0:01:41.2]} 29... Re2 {[%clk 0:00:49.5]} 30. f3 {[%clk
0:01:29.2]} 30... f5 {[%clk 0:00:40.4]} 31. Bd4 {[%clk 0:01:26.8]} 31... Kg8
{[%clk 0:00:38.7]} 32. Rd1 {[%clk 0:01:24.1]} 32... Nxf3+ {[%clk 0:00:32]} 33.
gxf3 {[%clk 0:01:23.2]} 33... Rxa2 {[%clk 0:00:32.9]} 34. Rd3 {[%clk 0:01:19.7]}
34... Kf7 {[%clk 0:00:32.4]} 35. Be5 {[%clk 0:01:18]} 35... g5 {[%clk
0:00:32.4]} 36. Rd6 {[%clk 0:01:14.5]} 36... Re2 {[%clk 0:00:32.2]} 37. Rf6+
{[%clk 0:01:07.9]} 37... Ke7 {[%clk 0:00:31.2]} 38. Rxf5 {[%clk 0:01:01.6]}
38... Ke6 {[%clk 0:00:30.7]} 39. Rxg5 {[%clk 0:01:01.2]} 1-0

[Event "Early-Titled-Tuesday-Blitz-March-05-2024"]
[Site "Chess.com"]
[Date "2024.03.05"]
[Round "10"]
[White "Dyadya81"]
[Black "ChessSwole"]
[Result "1-0"]
[WhiteElo "2895"]
[BlackElo "2732"]
[TimeControl "180+1"]
[EndTime "9:56:44 PST"]
[Termination "Dyadya81 won by resignation"]

1. e4 {[%clk 0:03:00.9]} 1... c5 {[%clk 0:02:59.8]} 2. Nc3 {[%clk 0:03:00.5]}
2... Nc6 {[%clk 0:02:58.9]} 3. Bb5 {[%clk 0:03:00.3]} 3... Nd4 {[%clk
0:02:57.7]} 4. Bc4 {[%clk 0:03:00.5]} 4... e6 {[%clk 0:02:57.3]} 5. Nge2 {[%clk
0:03:00.9]} 5... Nf6 {[%clk 0:02:56.4]} 6. O-O {[%clk 0:03:00.3]} 6... a6 {[%clk
0:02:55]} 7. a4 {[%clk 0:03:00.3]} 7... d5 {[%clk 0:02:52.4]} 8. exd5 {[%clk
0:03:01.2]} 8... exd5 {[%clk 0:02:52.8]} 9. Ba2 {[%clk 0:03:01.3]} 9... Be7
{[%clk 0:02:48.7]} 10. d3 {[%clk 0:03:00.5]} 10... Nxe2+ {[%clk 0:02:48.1]} 11.
Qxe2 {[%clk 0:03:00.3]} 11... O-O {[%clk 0:02:48.7]} 12. Qf3 {[%clk 0:02:48.1]}
12... Be6 {[%clk 0:02:40.8]} 13. Bg5 {[%clk 0:02:44.4]} 13... h6 {[%clk
0:02:23.6]} 14. Bxf6 {[%clk 0:02:34.6]} 14... Bxf6 {[%clk 0:02:24.5]} 15. Nxd5
{[%clk 0:02:33.8]} 15... Bxd5 {[%clk 0:01:58.4]} 16. Bxd5 {[%clk 0:02:32.2]}
16... Bxb2 {[%clk 0:01:55.3]} 17. Rab1 {[%clk 0:02:30.9]} 17... Bf6 {[%clk
0:01:48.2]} 18. Rxb7 {[%clk 0:02:29.8]} 18... Rb8 {[%clk 0:01:48.6]} 19. Rfb1
{[%clk 0:02:26.1]} 19... Qd6 {[%clk 0:01:48.4]} 20. Bxf7+ {[%clk 0:02:22.1]}
20... Kh8 {[%clk 0:01:48.1]} 21. g3 {[%clk 0:02:16]} 21... Bd4 {[%clk
0:01:44.9]} 22. Kg2 {[%clk 0:02:11.8]} 22... Qe5 {[%clk 0:01:25.1]} 23. Rxb8
{[%clk 0:01:46.5]} 23... Rxb8 {[%clk 0:01:26]} 24. Bg6 {[%clk 0:01:42]} 24...
Rd8 {[%clk 0:01:16.6]} 25. Rb7 {[%clk 0:01:23.4]} 25... Qd6 {[%clk 0:01:15.4]}
26. Be4 {[%clk 0:01:17.8]} 26... Rf8 {[%clk 0:01:12.3]} 27. Rf7 {[%clk
0:01:18.2]} 27... Rd8 {[%clk 0:01:07.1]} 28. Qf5 {[%clk 0:01:15.9]} 28... Kg8
{[%clk 0:01:06.9]} 29. c4 {[%clk 0:01:07]} 29... Bf6 {[%clk 0:00:59.6]} 30. Rb7
{[%clk 0:01:00.7]} 30... Be7 {[%clk 0:00:50.5]} 31. Qh7+ {[%clk 0:00:54.2]}
31... Kf7 {[%clk 0:00:43.4]} 32. Bd5+ {[%clk 0:00:50.2]} 32... Kf6 {[%clk
0:00:43.8]} 33. Qe4 {[%clk 0:00:46.2]} 33... Rd7 {[%clk 0:00:34.4]} 34. Qf3+
{[%clk 0:00:44.9]} 34... Kg6 {[%clk 0:00:31.1]} 35. Qg4+ {[%clk 0:00:44.5]} 1-0

[Event "Early-Titled-Tuesday-Blitz-March-05-2024"]
[Site "Chess.com"]
[Date "2024.03.05"]
[Round "10"]
[White "Antipov_Mikhail_Al"]
[Black "wannabe2700"]
[Result "1-0"]
[WhiteElo "2947"]
[BlackElo "2785"]
[TimeControl "180+1"]
[EndTime "9:56:45 PST"]
[Termination "Antipov_Mikhail_Al won by checkmate"]

1. e4 {[%clk 0:03:00.9]} 1... c5 {[%clk 0:02:59.8]} 2. Nf3 {[%clk 0:03:01.3]}
2... e6 {[%clk 0:02:59.4]} 3. b3 {[%clk 0:03:01.2]} 3... Nf6 {[%clk 0:02:49.2]}
4. e5 {[%clk 0:03:00.9]} 4... Nd5 {[%clk 0:02:49.8]} 5. c4 {[%clk 0:03:00.9]}
5... Ne7 {[%clk 0:02:48.2]} 6. Bb2 {[%clk 0:02:48.8]} 6... Nbc6 {[%clk
0:02:47.8]} 7. d4 {[%clk 0:02:37.5]} 7... cxd4 {[%clk 0:02:47.8]} 8. Nxd4 {[%clk
0:02:38.4]} 8... Qa5+ {[%clk 0:02:13.7]} 9. Bc3 {[%clk 0:02:27.7]} 9... Qxe5+
{[%clk 0:02:11.5]} 10. Be2 {[%clk 0:02:27.9]} 10... Nxd4 {[%clk 0:02:10]} 11.
Bxd4 {[%clk 0:02:28.8]} 11... Qg5 {[%clk 0:02:08.1]} 12. O-O {[%clk 0:02:06.6]}
12... Nf5 {[%clk 0:02:06.2]} 13. Nc3 {[%clk 0:02:03.5]} 13... Nxd4 {[%clk
0:01:57.7]} 14. Qxd4 {[%clk 0:02:04.4]} 14... Bc5 {[%clk 0:01:51.3]} 15. Qd3
{[%clk 0:02:04.2]} 15... Qe5 {[%clk 0:01:09.5]} 16. Rad1 {[%clk 0:01:55.4]}
16... f5 {[%clk 0:00:50.7]} 17. Bh5+ {[%clk 0:01:35.9]} 17... g6 {[%clk
0:00:50.6]} 18. Bf3 {[%clk 0:01:35.7]} 18... O-O {[%clk 0:00:48.2]} 19. Rfe1
{[%clk 0:01:33.8]} 19... Qf6 {[%clk 0:00:36.8]} 20. Nd5 {[%clk 0:01:25.2]} 20...
Qd8 {[%clk 0:00:31.4]} 21. b4 {[%clk 0:01:21.5]} 21... Bb6 {[%clk 0:00:17.1]}
22. c5 {[%clk 0:01:15.2]} 22... Bc7 {[%clk 0:00:16.8]} 23. Qd4 {[%clk
0:01:07.2]} 23... Bb8 {[%clk 0:00:13.3]} 24. g3 {[%clk 0:00:53.8]} 24... h6
{[%clk 0:00:13.6]} 25. Rd3 {[%clk 0:00:48.4]} 25... exd5 {[%clk 0:00:13.4]} 26.
Bxd5+ {[%clk 0:00:49.2]} 26... Kh7 {[%clk 0:00:14]} 27. Rde3 {[%clk 0:00:50.1]}
27... Qf6 {[%clk 0:00:10.7]} 28. Re7+ {[%clk 0:00:49.6]} 28... Kh8 {[%clk
0:00:11.2]} 29. Qxf6+ {[%clk 0:00:48.2]} 29... Rxf6 {[%clk 0:00:12.1]} 30. Re8+
{[%clk 0:00:48.9]} 30... Kh7 {[%clk 0:00:12.3]} 31. R1e7+ {[%clk 0:00:49.4]}
31... Rf7 {[%clk 0:00:12.4]} 32. Rxf7# {[%clk 0:00:50.3]} 1-0

[Event "Early-Titled-Tuesday-Blitz-March-05-2024"]
[Site "Chess.com"]
[Date "2024.03.05"]
[Round "10"]
[White "ZuraTqebuchava"]
[Black "FlemingA"]
[Result "0-1"]
[WhiteElo "2262"]
[BlackElo "2443"]
[TimeControl "180+1"]
[EndTime "9:56:51 PST"]
[Termination "FlemingA won on time"]

1. e4 {[%clk 0:03:00]} 1... e6 {[%clk 0:02:50.7]} 2. d3 {[%clk 0:02:58]} 2... d5
{[%clk 0:02:48.5]} 3. Nd2 {[%clk 0:02:58.5]} 3... c5 {[%clk 0:02:47.7]} 4. Ngf3
{[%clk 0:02:58.8]} 4... Nc6 {[%clk 0:02:48.2]} 5. g3 {[%clk 0:02:57.6]} 5... Nf6
{[%clk 0:02:48.8]} 6. Bg2 {[%clk 0:02:58]} 6... b6 {[%clk 0:02:49.4]} 7. O-O
{[%clk 0:02:57.9]} 7... Bb7 {[%clk 0:02:49.8]} 8. Re1 {[%clk 0:02:53.7]} 8...
Be7 {[%clk 0:02:50]} 9. c3 {[%clk 0:02:47]} 9... Qc7 {[%clk 0:02:49.4]} 10. e5
{[%clk 0:02:45.8]} 10... Nd7 {[%clk 0:02:49.6]} 11. Qe2 {[%clk 0:02:44.4]} 11...
g5 {[%clk 0:02:46.3]} 12. h3 {[%clk 0:02:24.9]} 12... h5 {[%clk 0:02:46.1]} 13.
Nf1 {[%clk 0:02:06.1]} 13... g4 {[%clk 0:02:40]} 14. hxg4 {[%clk 0:02:06.3]}
14... hxg4 {[%clk 0:02:40.9]} 15. N3h2 {[%clk 0:02:06.5]} 15... Ndxe5 {[%clk
0:02:32.8]} 16. Nxg4 {[%clk 0:01:57.2]} 16... Nxg4 {[%clk 0:02:23.6]} 17. Qxg4
{[%clk 0:01:58.1]} 17... O-O-O {[%clk 0:02:22]} 18. Bf4 {[%clk 0:01:55.4]} 18...
Bd6 {[%clk 0:02:07.3]} 19. Bxd6 {[%clk 0:01:42]} 19... Qxd6 {[%clk 0:02:08.2]}
20. c4 {[%clk 0:01:37.5]} 20... Nd4 {[%clk 0:02:02.8]} 21. Ne3 {[%clk
0:01:22.1]} 21... Rdg8 {[%clk 0:01:54.8]} 22. Qd1 {[%clk 0:01:21.3]} 22... f5
{[%clk 0:01:36.1]} 23. cxd5 {[%clk 0:01:20]} 23... exd5 {[%clk 0:01:17.9]} 24.
Nf1 {[%clk 0:01:16.7]} 24... f4 {[%clk 0:01:12.2]} 25. Qd2 {[%clk 0:00:55.9]}
25... f3 {[%clk 0:01:03.8]} 26. Bh1 {[%clk 0:00:40.5]} 26... Qd7 {[%clk
0:00:57.4]} 27. Qf4 {[%clk 0:00:28.5]} 27... Rxh1+ {[%clk 0:00:54.9]} 0-1

[Event "Early-Titled-Tuesday-Blitz-March-05-2024"]
[Site "Chess.com"]
[Date "2024.03.05"]
[Round "10"]
[White "Veganator13"]
[Black "mortngabriel"]
[Result "1-0"]
[WhiteElo "2388"]
[BlackElo "2520"]
[TimeControl "180+1"]
[EndTime "9:56:55 PST"]
[Termination "Veganator13 won by checkmate"]

1. c4 {[%clk 0:03:00]} 1... c5 {[%clk 0:02:59.5]} 2. g3 {[%clk 0:02:59.4]} 2...
Nc6 {[%clk 0:02:59.5]} 3. Bg2 {[%clk 0:02:58.8]} 3... g6 {[%clk 0:02:59.9]} 4.
Nc3 {[%clk 0:02:53.2]} 4... Bg7 {[%clk 0:02:59.8]} 5. d3 {[%clk 0:02:52.9]} 5...
e5 {[%clk 0:02:51.4]} 6. Nf3 {[%clk 0:02:50.7]} 6... d6 {[%clk 0:02:44.5]} 7.
Nd2 {[%clk 0:02:49.7]} 7... Nge7 {[%clk 0:02:32]} 8. Nf1 {[%clk 0:02:49.3]} 8...
O-O {[%clk 0:02:20.7]} 9. Ne3 {[%clk 0:02:48.9]} 9... Rb8 {[%clk 0:02:15.3]} 10.
Rb1 {[%clk 0:02:40]} 10... Nd4 {[%clk 0:02:13.1]} 11. Ned5 {[%clk 0:02:29.9]}
11... Nxd5 {[%clk 0:02:12.4]} 12. Nxd5 {[%clk 0:02:29.4]} 12... Qa5+ {[%clk
0:01:52.7]} 13. Bd2 {[%clk 0:02:24.5]} 13... Qxa2 {[%clk 0:01:51.6]} 14. Ra1
{[%clk 0:01:48.8]} 14... Qxb2 {[%clk 0:01:46.7]} 15. O-O {[%clk 0:01:29.1]}
15... Nb3 {[%clk 0:01:38.9]} 16. Bc3 {[%clk 0:01:26.3]} 16... Qxa1 {[%clk
0:01:29]} 17. Bxa1 {[%clk 0:01:25.8]} 17... Nxa1 {[%clk 0:01:29.9]} 18. Qxa1
{[%clk 0:01:25.9]} 18... a6 {[%clk 0:01:29.9]} 19. Rb1 {[%clk 0:01:25.4]} 19...
b5 {[%clk 0:01:28.8]} 20. Ne7+ {[%clk 0:01:24]} 20... Kh8 {[%clk 0:01:27.8]} 21.
Nxc8 {[%clk 0:01:24.9]} 21... Rfxc8 {[%clk 0:01:27]} 22. Qxa6 {[%clk 0:01:20.8]}
22... b4 {[%clk 0:01:11.1]} 23. Qxd6 {[%clk 0:01:17.3]} 23... e4 {[%clk
0:01:11.8]} 24. Bxe4 {[%clk 0:01:16.7]} 24... b3 {[%clk 0:01:12.3]} 25. Bd5
{[%clk 0:01:08.1]} 25... b2 {[%clk 0:01:07.9]} 26. Qd7 {[%clk 0:01:07.2]} 26...
Bc3 {[%clk 0:00:47.6]} 27. e3 {[%clk 0:00:59.2]} 27... Rd8 {[%clk 0:00:32.6]}
28. Qxf7 {[%clk 0:00:57.5]} 28... Rd6 {[%clk 0:00:17.9]} 29. Qe7 {[%clk
0:00:46.6]} 29... Ra6 {[%clk 0:00:16.1]} 30. d4 {[%clk 0:00:46.6]} 30... Ra1
{[%clk 0:00:15.4]} 31. Qe5# {[%clk 0:00:46]} 1-0

[Event "Early-Titled-Tuesday-Blitz-March-05-2024"]
[Site "Chess.com"]
[Date "2024.03.05"]
[Round "10"]
[White "ValentunHulka"]
[Black "Mikasinski"]
[Result "0-1"]
[WhiteElo "2758"]
[BlackElo "2636"]
[TimeControl "180+1"]
[EndTime "9:56:57 PST"]
[Termination "Mikasinski won on time"]

1. e4 {[%clk 0:02:56.4]} 1... c5 {[%clk 0:03:00.1]} 2. Nf3 {[%clk 0:02:56.3]}
2... d6 {[%clk 0:03:00.4]} 3. d4 {[%clk 0:02:56.8]} 3... cxd4 {[%clk 0:03:01.1]}
4. Nxd4 {[%clk 0:02:57.7]} 4... Nf6 {[%clk 0:03:01.5]} 5. Nc3 {[%clk 0:02:58.3]}
5... a6 {[%clk 0:03:02.2]} 6. h3 {[%clk 0:02:58.9]} 6... e5 {[%clk 0:03:02.1]}
7. Nf3 {[%clk 0:02:59.6]} 7... Be7 {[%clk 0:03:02.4]} 8. g4 {[%clk 0:03:00.2]}
8... h6 {[%clk 0:03:01.9]} 9. Rg1 {[%clk 0:03:00.2]} 9... Nc6 {[%clk 0:02:56.1]}
10. g5 {[%clk 0:02:58.2]} 10... hxg5 {[%clk 0:02:55.1]} 11. Nxg5 {[%clk
0:02:59.1]} 11... Nd4 {[%clk 0:02:51.7]} 12. Bc4 {[%clk 0:02:57.8]} 12... Be6
{[%clk 0:02:30.2]} 13. Nxe6 {[%clk 0:02:48.6]} 13... fxe6 {[%clk 0:02:28.9]} 14.
Be3 {[%clk 0:02:36.3]} 14... d5 {[%clk 0:02:14.6]} 15. Bf1 {[%clk 0:01:08.7]}
15... dxe4 {[%clk 0:02:04.6]} 16. Rxg7 {[%clk 0:00:47.2]} 16... Nf3+ {[%clk
0:02:03.5]} 17. Ke2 {[%clk 0:00:47.9]} 17... Nd4+ {[%clk 0:01:54.4]} 18. Ke1
{[%clk 0:00:48.3]} 18... Qc7 {[%clk 0:01:13]} 19. Bg2 {[%clk 0:00:35.6]} 19...
O-O-O {[%clk 0:01:08.7]} 20. Nxe4 {[%clk 0:00:35.8]} 20... Nxc2+ {[%clk
0:00:58.1]} 21. Qxc2 {[%clk 0:00:36.4]} 21... Qxc2 {[%clk 0:00:57.7]} 22. Rc1
{[%clk 0:00:37.1]} 22... Bb4+ {[%clk 0:00:57.4]} 23. Nc3 {[%clk 0:00:21.1]}
23... Qxb2 {[%clk 0:00:46.5]} 24. Bxb7+ {[%clk 0:00:04.9]} 24... Kb8 {[%clk
0:00:45.2]} 25. Kf1 {[%clk 0:00:04.1]} 25... Rd7 {[%clk 0:00:39.2]} 0-1

[Event "Early-Titled-Tuesday-Blitz-March-05-2024"]
[Site "Chess.com"]
[Date "2024.03.05"]
[Round "10"]
[White "AlexPapasimakopoulos"]
[Black "viniciusrego"]
[Result "1-0"]
[WhiteElo "2750"]
[BlackElo "2423"]
[TimeControl "180+1"]
[EndTime "9:57:05 PST"]
[Termination "AlexPapasimakopoulos won by checkmate"]

1. d4 {[%clk 0:03:00.4]} 1... g6 {[%clk 0:03:00]} 2. e4 {[%clk 0:02:59.5]} 2...
Bg7 {[%clk 0:02:59.1]} 3. c4 {[%clk 0:03:00.2]} 3... c5 {[%clk 0:02:57.5]} 4. d5
{[%clk 0:03:00.2]} 4... e6 {[%clk 0:02:51.9]} 5. Bd3 {[%clk 0:02:59.6]} 5... d6
{[%clk 0:02:50.8]} 6. h3 {[%clk 0:02:59.2]} 6... Nf6 {[%clk 0:02:50.3]} 7. Nf3
{[%clk 0:02:59.4]} 7... a6 {[%clk 0:02:48.9]} 8. a4 {[%clk 0:02:58.8]} 8... O-O
{[%clk 0:02:48.2]} 9. O-O {[%clk 0:02:58.8]} 9... Re8 {[%clk 0:02:48.5]} 10. Nc3
{[%clk 0:02:58.7]} 10... exd5 {[%clk 0:02:48.5]} 11. exd5 {[%clk 0:02:58.6]}
11... Nbd7 {[%clk 0:02:35]} 12. Bf4 {[%clk 0:02:57.6]} 12... Qc7 {[%clk
0:02:34.1]} 13. Re1 {[%clk 0:02:55.9]} 13... Rxe1+ {[%clk 0:02:31.9]} 14. Qxe1
{[%clk 0:02:56.8]} 14... Nf8 {[%clk 0:02:19]} 15. Qd2 {[%clk 0:02:32.1]} 15...
Bd7 {[%clk 0:02:17.6]} 16. Re1 {[%clk 0:02:32.7]} 16... Re8 {[%clk 0:02:17.7]}
17. Rxe8 {[%clk 0:02:32.1]} 17... Bxe8 {[%clk 0:02:14.7]} 18. g4 {[%clk
0:02:31.4]} 18... Bd7 {[%clk 0:02:12]} 19. Kg2 {[%clk 0:02:28.5]} 19... Bc8
{[%clk 0:02:06.6]} 20. Qe3 {[%clk 0:02:25.4]} 20... Qd8 {[%clk 0:02:04.5]} 21.
Ng5 {[%clk 0:02:20.5]} 21... Ne8 {[%clk 0:01:58.4]} 22. Nge4 {[%clk 0:02:17.5]}
22... f5 {[%clk 0:01:44.8]} 23. gxf5 {[%clk 0:02:11.9]} 23... gxf5 {[%clk
0:01:40.8]} 24. Ng3 {[%clk 0:02:08.1]} 24... Bxc3 {[%clk 0:01:35.2]} 25. bxc3
{[%clk 0:02:06.6]} 25... Ng7 {[%clk 0:01:33.9]} 26. Bg5 {[%clk 0:02:02.6]} 26...
Qd7 {[%clk 0:01:25.9]} 27. a5 {[%clk 0:01:56.7]} 27... Ng6 {[%clk 0:01:22.4]}
28. f4 {[%clk 0:01:47.3]} 28... Qa4 {[%clk 0:01:09.9]} 29. h4 {[%clk 0:01:44.3]}
29... h5 {[%clk 0:01:00]} 30. Bf6 {[%clk 0:01:28.4]} 30... Qxa5 {[%clk 0:00:51]}
31. Bxg7 {[%clk 0:01:23.6]} 31... Kxg7 {[%clk 0:00:51.9]} 32. Nxh5+ {[%clk
0:01:13.9]} 32... Kh6 {[%clk 0:00:52.3]} 33. Ng3 {[%clk 0:01:09.8]} 33... Qxc3
{[%clk 0:00:44.6]} 34. h5 {[%clk 0:01:10.1]} 34... Qxd3 {[%clk 0:00:40.5]} 35.
Qe8 {[%clk 0:00:56.8]} 35... Nxf4+ {[%clk 0:00:36.7]} 36. Kf2 {[%clk 0:00:56.8]}
36... Qd4+ {[%clk 0:00:25.2]} 37. Kf3 {[%clk 0:00:54.8]} 37... Nh3 {[%clk
0:00:17.1]} 38. Qg6# {[%clk 0:00:43.2]} 1-0